bitfinex/quotes_BTCUSD_20230904
["timestamp","ask_amount","ask_price","bid_price","bid_amount"]
[1693820887568,0.122919,25930.0,25929.0,0.38849843]
[1693820887987,0.122919,25930.0,25929.0,0.38849863]
[1693820888232,0.122919,25930.0,25929.0,0.24971442]
[1693820890741,0.282919,25930.0,25929.0,0.24971442]
[1693820898971,0.35330167,25930.0,25929.0,0.24971442]
[1693820905499,0.35330167,25930.0,25929.0,0.20185927]
[1693820907139,0.35330167,25930.0,25929.0,0.34067542]
[1693820907542,0.35330167,25930.0,25929.0,0.34067597]
[1693820907741,0.35330167,25930.0,25929.0,0.20185927]
[1693820907963,0.35330167,25930.0,25929.0,0.34067609]
[1693820908298,0.35330167,25930.0,25929.0,0.34067675]
[1693820912631,0.35330167,25930.0,25929.0,0.20185927]
[1693820913238,0.35330167,25930.0,25929.0,0.23937479]
[1693820921110,0.35330167,25930.0,25929.0,0.18490875]
[1693820928653,0.95773883,25930.0,25929.0,0.13884638]
[1693820928914,0.95773883,25930.0,25929.0,0.23141086]
[1693820930521,0.95773883,25930.0,25929.0,0.09256448]
[1693820935600,0.95773883,25930.0,25927.0,0.09256448]
[1693820935601,0.111919,25928.0,25927.0,0.09256448]
[1693820935809,0.111919,25928.0,25926.0,0.09256448]
[1693820935810,0.111919,25927.0,25926.0,0.09256448]
[1693820935981,0.02,25927.0,25924.0,0.03168433]
[1693820936184,0.111919,25924.0,25923.0,0.9878]
[1693820936388,0.111919,25924.0,25922.0,0.00082064]
[1693820936389,0.111919,25923.0,25922.0,0.00082064]
[1693820936594,0.446019,25923.0,25922.0,0.00082064]
[1693820936796,0.67232393,25923.0,25922.0,0.00082064]
[1693820937574,0.82922393,25923.0,25922.0,0.00082064]
[1693820937999,1.09400578,25923.0,25922.0,0.00082064]
[1693820938210,1.11400578,25923.0,25922.0,0.00082064]
[1693820938410,1.30607636,25923.0,25922.0,0.00082064]
[1693820939008,1.33007636,25923.0,25922.0,0.00082064]
[1693820939192,1.35407636,25923.0,25922.0,0.00082064]
[1693820939640,1.35407636,25923.0,25918.0,0.9878]
[1693820939843,0.091919,25918.0,25917.0,0.00098503]
[1693820940267,0.051919,25916.0,25914.0,0.23112884]
[1693820942036,0.11898387,25916.0,25913.0,1.30202884]
[1693820942247,0.12098387,25916.0,25913.0,1.30202884]
[1693820942455,0.12098387,25916.0,25915.0,0.03876363]
[1693820943463,0.12198387,25916.0,25915.0,0.03876363]
[1693820944536,0.12198387,25916.0,25915.0,0.19308263]
[1693820944746,0.12198387,25916.0,25913.0,0.07498065]
[1693820944945,0.12198387,25916.0,25915.0,0.01222598]
[1693820945101,0.054919,25916.0,25915.0,0.01222598]
[1693820945509,0.12198177,25916.0,25915.0,0.01222598]
[1693820946217,0.12098177,25916.0,25915.0,0.01222598]
[1693820946850,0.12398177,25916.0,25915.0,0.01222598]
[1693820947362,0.12098177,25916.0,25915.0,0.01222598]
[1693820947760,0.12198177,25916.0,25915.0,0.01222598]
[1693820951012,0.12198177,25916.0,25915.0,0.09532598]
[1693820951217,0.12014405,25916.0,25915.0,0.09532598]
[1693820951419,0.11830231,25916.0,25915.0,0.09532598]
[1693820954250,0.11830231,25916.0,25915.0,0.09525938]
[1693820957624,0.12879211,25916.0,25911.0,0.06127066]
[1693820957774,0.12879211,25916.0,25915.0,0.0831]
[1693820958423,0.12579211,25916.0,25915.0,0.0831]
[1693820958623,0.12779211,25916.0,25915.0,0.0831]
[1693820958830,0.12979211,25916.0,25915.0,0.0831]
[1693820959169,0.12579211,25916.0,25915.0,0.0831]
[1693820959352,0.12779211,25916.0,25915.0,0.0831]
[1693820959517,0.12879211,25916.0,25915.0,0.0831]
[1693820962303,0.06172934,25916.0,25915.0,0.0831]
[1693820962512,0.06172934,25916.0,25913.0,0.0831]
[1693820962513,0.05872934,25915.0,25913.0,0.0831]
[1693820963344,0.018154,25915.0,25913.0,0.0831]
[1693820963546,0.05872934,25915.0,25913.0,0.0831]
[1693820964490,0.05872934,25915.0,25913.0,0.0582]
[1693820964873,0.06072934,25915.0,25913.0,0.0582]
[1693820965019,0.21462934,25915.0,25913.0,0.0582]
[1693820965218,0.20962934,25915.0,25913.0,0.0582]
[1693820965426,0.21162934,25915.0,25913.0,0.0582]
[1693820965723,0.21262934,25915.0,25913.0,0.0582]
[1693820969718,0.21262934,25915.0,25914.0,0.08540752]
[1693820970566,0.21162934,25915.0,25914.0,0.08540752]
[1693820971199,0.21262934,25915.0,25914.0,0.08540752]
[1693820973120,0.21262934,25915.0,25914.0,0.16850752]
[1693820973684,0.21262934,25915.0,25914.0,0.12850752]
[1693820976049,0.20719634,25915.0,25914.0,0.12850752]
[1693820976214,0.21262934,25915.0,25914.0,0.12850752]
[1693820977966,0.21162934,25915.0,25914.0,0.12850752]
[1693820978168,0.20962934,25915.0,25914.0,0.16437438]
[1693820978308,0.21062934,25915.0,25914.0,0.16437438]
[1693820978516,0.21262934,25915.0,25914.0,0.16437438]
[1693820978758,0.21262934,25915.0,25914.0,0.1645726]
[1693820979338,0.21262934,25915.0,25914.0,0.08329822]
[1693820979774,0.21062934,25915.0,25914.0,0.08329822]
[1693820980200,0.46845803,25915.0,25914.0,0.08329822]
[1693820980961,0.46793603,25915.0,25914.0,0.08329822]
[1693820981169,0.22110734,25915.0,25914.0,0.08329822]
[1693820983338,0.07020734,25915.0,25914.0,0.08329822]
[1693820984491,0.23390734,25915.0,25914.0,0.08329822]
[1693820984930,0.07020734,25915.0,25914.0,0.08329822]
[1693820985773,0.07020734,25915.0,25914.0,0.17554365]
[1693820987731,0.07020734,25915.0,25914.0,0.31391675]
[1693820988663,0.07020734,25915.0,25914.0,0.22167132]
[1693820990766,0.07020734,25915.0,25914.0,0.4059486]
[1693820991745,0.07020734,25915.0,25914.0,0.2675755]
[1693820992531,0.07020734,25915.0,25914.0,0.49870434]
[1693820993569,0.07020734,25915.0,25914.0,0.39559834]
[1693820999004,0.07020734,25915.0,25914.0,0.41835928]
[1693821006863,0.07020734,25915.0,25914.0,0.18723044]
[1693821012939,0.07020734,25915.0,25914.0,0.10605916]
[1693821013141,0.07020734,25915.0,25914.0,0.18723138]
[1693821013961,0.05920734,25915.0,25914.0,0.18723138]
[1693821014368,0.07020734,25915.0,25914.0,0.18723138]
[1693821014778,0.05920734,25915.0,25914.0,0.18723138]
[1693821015198,0.07920734,25915.0,25914.0,0.18723138]
[1693821015349,0.07820734,25915.0,25914.0,0.18723138]
[1693821015710,0.07920734,25915.0,25914.0,0.18723138]
[1693821015913,0.07820734,25915.0,25914.0,0.18723138]
[1693821016339,0.08820734,25915.0,25914.0,0.18723138]
[1693821024268,0.36971645,25915.0,25914.0,0.18723138]
[1693821024478,0.36971645,25915.0,25914.0,0.33754774]
[1693821025361,0.52051645,25915.0,25914.0,0.33754774]
[1693821033012,0.52051645,25915.0,25914.0,0.25444774]
[1693821034028,0.50051645,25915.0,25914.0,0.25444774]
[1693821034284,0.52051645,25915.0,25914.0,0.25444774]
[1693821034487,0.29909551,25915.0,25914.0,0.25444774]
[1693821034796,0.28909551,25915.0,25914.0,0.25444774]
[1693821035020,0.27909551,25915.0,25914.0,0.25444774]
[1693821035227,0.28909551,25915.0,25914.0,0.25444774]
[1693821035838,0.28909551,25915.0,25914.0,0.41680419]
[1693821036055,0.30909551,25915.0,25914.0,0.43956513]
[1693821038826,0.30909551,25915.0,25914.0,0.43955359]
[1693821042996,0.30909551,25915.0,25914.0,0.52265359]
[1693821050882,0.30909551,25915.0,25914.0,0.29116501]
[1693821051869,0.30909551,25915.0,25914.0,0.52265359]
[1693821052244,0.30909551,25915.0,25914.0,0.29116501]
[1693821052446,0.30909551,25915.0,25914.0,0.52265359]
[1693821052650,0.30909551,25915.0,25914.0,0.29116501]
[1693821053702,0.30909551,25915.0,25914.0,0.52265359]
[1693821058827,0.30909551,25915.0,25914.0,0.3375362]
[1693821062562,0.30909551,25915.0,25914.0,0.49992281]
[1693821062875,0.30909551,25915.0,25914.0,0.52268375]
[1693821064687,0.30909551,25915.0,25914.0,0.3375362]
[1693821073931,0.10008817,25915.0,25914.0,0.72920376]
[1693821074133,0.10008817,25915.0,25914.0,0.57436905]
[1693821074345,0.035433,25915.0,25914.0,0.57436905]
[1693821074755,0.035433,25915.0,25914.0,0.85165245]
[1693821074756,0.08820734,25915.0,25914.0,0.85165245]
[1693821075007,0.06820734,25915.0,25914.0,0.69919383]
[1693821075150,0.015433,25915.0,25914.0,0.69919383]
[1693821075356,0.07020734,25915.0,25914.0,0.70119383]
[1693821076066,0.06020734,25915.0,25914.0,0.70119383]
[1693821076266,0.03066834,25918.0,25914.0,0.70119383]
[1693821076445,0.03066834,25918.0,25917.0,0.40716663]
[1693821076586,0.03066834,25918.0,25917.0,0.55475235]
[1693821076989,0.11952826,25918.0,25917.0,0.55475235]
[1693821077398,0.12152826,25918.0,25917.0,0.55475235]
[1693821077636,0.11952826,25918.0,25917.0,0.55475235]
[1693821077834,0.12152826,25918.0,25917.0,0.55575235]
[1693821078034,0.12252826,25918.0,25917.0,0.37957142]
[1693821079927,0.09503392,25918.0,25917.0,0.37957142]
[1693821080129,0.12252826,25918.0,25917.0,0.37957142]
[1693821082343,0.12252826,25918.0,25917.0,0.34533073]
[1693821082918,0.12252826,25918.0,25917.0,0.43787537]
[1693821083130,0.12252826,25918.0,25917.0,0.34533073]
[1693821083517,0.12252826,25918.0,25917.0,0.43787518]
[1693821083693,0.12252826,25918.0,25917.0,0.05206639]
[1693821083894,0.12252826,25918.0,25915.0,0.47000148]
[1693821084097,0.03049434,25918.0,25917.0,0.0831]
[1693821084654,0.11345331,25918.0,25917.0,0.0831]
[1693821084860,0.02749434,25918.0,25917.0,0.0831]
[1693821085034,0.02949434,25918.0,25917.0,0.0831]
[1693821086085,0.03249434,25918.0,25917.0,0.0831]
[1693821086319,0.03049434,25918.0,25917.0,0.0831]
[1693821086499,0.02749434,25918.0,25917.0,0.0831]
[1693821086799,0.03049434,25918.0,25917.0,0.0851]
[1693821087011,0.03049434,25918.0,25915.0,0.16926316]
[1693821087253,0.03049434,25918.0,25917.0,0.0831]
[1693821087587,0.003,25918.0,25917.0,0.0831]
[1693821088022,0.18769434,25922.0,25917.0,0.0831]
[1693821088227,0.02749434,25921.0,25917.0,0.15483471]
[1693821088427,0.02749434,25921.0,25920.0,0.0831]
[1693821088993,0.02735519,25921.0,25920.0,0.0831]
[1693821090015,0.04635519,25921.0,25920.0,0.0831]
[1693821090827,0.07035519,25921.0,25920.0,0.0831]
[1693821091027,0.06572619,25921.0,25920.0,0.0831]
[1693821091196,0.06572619,25921.0,25920.0,0.0530034]
[1693821091396,0.06572619,25921.0,25916.0,0.01727381]
[1693821091601,0.06572619,25921.0,25920.0,0.0831]
[1693821091816,0.29125274,25921.0,25920.0,0.0831]
[1693821092238,0.37580307,25921.0,25920.0,0.0831]
[1693821092644,0.35680307,25921.0,25920.0,0.0831]
[1693821093118,0.33480307,25921.0,25920.0,0.0831]
[1693821093290,0.33380307,25921.0,25920.0,0.0831]
[1693821093614,0.35280307,25921.0,25920.0,0.0831]
[1693821093817,0.35180307,25921.0,25920.0,0.0831]
[1693821094182,0.15027652,25921.0,25920.0,0.0831]
[1693821094559,0.06572619,25921.0,25920.0,0.0831]
[1693821097559,0.06572619,25921.0,25920.0,0.41468264]
[1693821097560,0.043,25921.0,25920.0,0.41468264]
[1693821097764,0.043,25921.0,25919.0,0.71810176]
[1693821097963,0.043,25921.0,25920.0,0.25863198]
[1693821098137,0.043,25921.0,25920.0,0.1662]
[1693821099151,0.019,25921.0,25920.0,0.1662]
[1693821099658,0.003,25921.0,25920.0,0.1672]
[1693821099866,0.001,25921.0,25920.0,0.26061036]
[1693821100095,0.001,25921.0,25920.0,0.1682]
[1693821100304,0.002,25921.0,25920.0,0.1712]
[1693821100765,0.005,25921.0,25920.0,0.1732]
[1693821100991,0.005,25921.0,25920.0,0.265591]
[1693821101200,0.005,25921.0,25920.0,0.1732]
[1693821101616,0.005,25921.0,25920.0,0.65267696]
[1693821101926,0.005,25921.0,25920.0,0.62898678]
[1693821102143,0.005,25921.0,25920.0,0.62838678]
[1693821102361,0.1941,25925.0,25921.0,0.9]
[1693821102574,0.2688,25926.0,25921.0,0.9]
[1693821102575,0.2688,25926.0,25924.0,0.0831]
[1693821102781,0.04,25928.0,25925.0,0.0831]
[1693821102987,0.2942,25928.0,25927.0,0.0831]
[1693821103398,0.38276984,25928.0,25927.0,0.0831]
[1693821103609,0.53566984,25928.0,25927.0,0.0831]
[1693821103817,0.49566984,25928.0,25927.0,0.0831]
[1693821104021,0.51566984,25928.0,25927.0,0.0831]
[1693821104227,0.49566984,25928.0,25927.0,0.0831]
[1693821104434,0.53566984,25928.0,25927.0,0.0831]
[1693821104818,0.53566984,25928.0,25927.0,0.0841]
[1693821104819,0.53966984,25928.0,25927.0,0.0841]
[1693821105029,0.52227284,25928.0,25927.0,0.0841]
[1693821105435,0.54427284,25928.0,25927.0,0.0861]
[1693821105867,0.52227284,25928.0,25927.0,0.0841]
[1693821106075,0.51813484,25928.0,25927.0,0.0831]
[1693821106300,0.53613484,25928.0,25927.0,0.0851]
[1693821107524,0.49613484,25928.0,25927.0,0.0851]
[1693821108368,0.407565,25928.0,25927.0,0.0851]
[1693821110899,0.018,25928.0,25927.0,0.0851]
[1693821111112,0.018,25928.0,25927.0,0.1682]
[1693821113224,0.018,25928.0,25927.0,0.55528678]
[1693821114095,0.014,25928.0,25927.0,0.47118678]
[1693821114527,0.001,25928.0,25927.0,0.48418678]
[1693821114721,0.002,25928.0,25927.0,0.48818678]
[1693821115316,0.001,25928.0,25927.0,0.48418678]
[1693821115519,0.003,25928.0,25927.0,0.50618678]
[1693821115728,0.1657,25931.0,25927.0,1.56648678]
[1693821116013,0.04,25934.0,25930.0,0.1662]
[1693821116139,0.04,25934.0,25933.0,0.0831]
[1693821116738,0.2519,25935.0,25933.0,0.0831]
[1693821116739,0.4463,25935.0,25933.0,0.0831]
[1693821116939,0.4063,25935.0,25934.0,0.0831]
[1693821117192,0.4463,25935.0,25934.0,0.0831]
[1693821119033,0.4593,25935.0,25934.0,0.0841]
[1693821119168,0.442903,25935.0,25934.0,0.0841]
[1693821119560,0.464903,25935.0,25934.0,0.0861]
[1693821120671,0.68992621,25935.0,25934.0,0.0861]
[1693821122042,0.77844291,25935.0,25934.0,0.0861]
[1693821122244,0.5534197,25935.0,25934.0,0.0861]
[1693821122830,0.81732048,25935.0,25934.0,0.0861]
[1693821128993,0.81732048,25935.0,25934.0,0.003]
[1693821142540,0.90042048,25935.0,25934.0,0.003]
[1693821147039,0.99248779,25935.0,25934.0,0.003]
[1693821147282,0.90042048,25935.0,25934.0,0.003]
[1693821147736,0.99248779,25935.0,25934.0,0.003]
[1693821147959,0.90042048,25935.0,25934.0,0.003]
[1693821149005,0.99248779,25935.0,25934.0,0.003]
[1693821149825,0.90042048,25935.0,25934.0,0.003]
[1693821150044,0.99248779,25935.0,25934.0,0.003]
[1693821150255,0.90938779,25935.0,25934.0,0.003]
[1693821150402,0.90042048,25935.0,25934.0,0.003]
[1693821153134,0.81732048,25935.0,25934.0,0.003]
[1693821155703,0.6365197,25935.0,25934.0,0.003]
[1693821156049,1.02360648,25935.0,25934.0,0.003]
[1693821156509,1.24170745,25935.0,25934.0,0.003]
[1693821156715,1.46587352,25935.0,25934.0,0.003]
[1693821156919,1.28173889,25935.0,25934.0,0.003]
[1693821157324,1.46587352,25935.0,25934.0,0.003]
[1693821157528,1.44387352,25935.0,25934.0,0.001]
[1693821157736,1.27873889,25935.0,25934.0,0.001]
[1693821157939,1.27873889,25935.0,25928.0,0.00098447]
[1693821157940,0.04,25930.0,25928.0,0.00098447]
[1693821158346,0.04,25930.0,25927.0,0.12299326]
[1693821158554,0.07338599,25929.0,25927.0,0.12299326]
[1693821159367,0.07338599,25929.0,25928.0,0.016]
[1693821159568,0.07338599,25929.0,25927.0,0.12299326]
[1693821159771,0.07338599,25929.0,25927.0,0.13899326]
[1693821159772,0.07538599,25929.0,25927.0,0.13899326]
[1693821160601,0.07538599,25929.0,25928.0,0.004]
[1693821161014,0.07538599,25929.0,25927.0,0.13899326]
[1693821161216,0.07738599,25929.0,25927.0,0.11238536]
[1693821161593,0.07538599,25929.0,25927.0,0.09638536]
[1693821161800,0.07338599,25929.0,25927.0,0.09238536]
[1693821162029,0.07638599,25929.0,25928.0,0.02]
[1693821162233,0.07438599,25929.0,25928.0,0.004]
[1693821162641,0.07638599,25929.0,25928.0,0.004]
[1693821162815,0.07438599,25929.0,25928.0,0.004]
[1693821163638,0.07438599,25929.0,25927.0,0.09238536]
[1693821163639,0.07338599,25929.0,25927.0,0.09238536]
[1693821164038,0.07338599,25929.0,25927.0,0.09638536]
[1693821164039,0.07538599,25929.0,25927.0,0.09638536]
[1693821164238,0.07738599,25929.0,25928.0,0.016]
[1693821164821,0.07538599,25929.0,25927.0,0.09638536]
[1693821165015,0.07538599,25929.0,25927.0,0.10838536]
[1693821165358,0.07338599,25929.0,25927.0,0.09238536]
[1693821165768,0.07538599,25929.0,25928.0,0.016]
[1693821165969,0.07338599,25929.0,25927.0,0.09238536]
[1693821166173,0.07538599,25929.0,25927.0,0.10838536]
[1693821166373,0.07538599,25929.0,25928.0,0.004]
[1693821166374,0.07638599,25929.0,25928.0,0.004]
[1693821167048,0.07638599,25929.0,25927.0,0.10838536]
[1693821167049,0.07538599,25929.0,25927.0,0.10838536]
[1693821167255,0.07738599,25929.0,25927.0,0.11238536]
[1693821167454,0.35615283,25929.0,25927.0,0.11238536]
[1693821167656,0.2647108,25928.0,25927.0,0.10838536]
[1693821168016,0.2647108,25928.0,25927.0,0.016]
[1693821168215,0.33809401,25928.0,25927.0,0.09238536]
[1693821168816,0.33809401,25928.0,25926.0,0.38506266]
[1693821169049,0.34009401,25928.0,25927.0,0.016]
[1693821169688,0.34009401,25928.0,25927.0,0.02]
[1693821170137,0.34009401,25928.0,25927.0,0.016]
[1693821170552,0.34209401,25928.0,25927.0,0.02]
[1693821172677,0.34209401,25928.0,25927.0,0.32]
[1693821175097,0.07738321,25928.0,25927.0,0.32]
[1693821175529,0.004,25928.0,25927.0,0.32]
[1693821181449,0.26487981,25928.0,25927.0,0.32]
[1693821186667,0.26487981,25928.0,25927.0,0.41238536]
[1693821199718,0.26487981,25928.0,25927.0,0.55081566]
[1693821201775,0.26487981,25928.0,25927.0,0.4584303]
[1693821202150,0.33228044,25928.0,25927.0,0.4584303]
[1693821219027,0.37228044,25928.0,25927.0,0.4584303]
[1693821219237,0.45538044,25928.0,25927.0,0.32]
[1693821219902,0.45338044,25928.0,25927.0,0.304]
[1693821220109,0.45138044,25928.0,25927.0,0.3]
[1693821220289,0.45438044,25928.0,25927.0,0.318]
[1693821220930,0.72988741,25928.0,25927.0,0.314]
[1693821221074,0.73188741,25928.0,25927.0,0.315]
[1693821221274,0.72988741,25928.0,25927.0,0.301]
[1693821221480,1.02465726,25928.0,25927.0,0.301]
[1693821221679,1.02565726,25928.0,25927.0,0.308]
[1693821222099,0.75088741,25928.0,25927.0,0.308]
[1693821223157,0.85088741,25928.0,25927.0,0.308]
[1693821223952,0.85088741,25928.0,25927.0,0.307]
[1693821223953,0.84888741,25928.0,25927.0,0.307]
[1693821224160,0.85888741,25928.0,25927.0,0.13114772]
[1693821224361,0.85888741,25928.0,25921.0,1.16938997]
[1693821224362,0.04,25924.0,25921.0,1.16938997]
[1693821224570,0.0831,25923.0,25922.0,0.00099075]
[1693821224769,0.2383,25923.0,25921.0,0.98441207]
[1693821224976,0.52301358,25923.0,25921.0,0.98441207]
[1693821225184,0.52301358,25923.0,25921.0,0.0191]
[1693821225626,0.52501358,25923.0,25922.0,0.007]
[1693821226045,0.52301358,25923.0,25921.0,0.0191]
[1693821226249,0.52601358,25923.0,25921.0,0.0261]
[1693821226690,0.52301358,25923.0,25921.0,0.0191]
[1693821226894,0.52601358,25923.0,25922.0,0.009]
[1693821227095,0.52572258,25923.0,25922.0,0.009]
[1693821227481,0.52472258,25923.0,25922.0,0.007]
[1693821227682,0.52672258,25923.0,25922.0,0.007]
[1693821228113,0.52272258,25923.0,25921.0,0.0191]
[1693821228548,0.29281528,25922.0,25919.0,0.05655856]
[1693821229371,0.45051528,25922.0,25919.0,0.05655856]
[1693821229546,0.45251528,25922.0,25919.0,0.05755856]
[1693821230359,0.45551528,25922.0,25919.0,0.003]
[1693821233211,0.45551528,25922.0,25920.0,0.13860146]
[1693821233625,0.29781528,25922.0,25920.0,0.13860146]
[1693821234049,0.002,25922.0,25920.0,0.22170146]
[1693821234258,0.002,25922.0,25921.0,0.09239195]
[1693821234461,0.003,25922.0,25921.0,0.29754146]
[1693821234687,0.003,25922.0,25921.0,0.29988146]
[1693821234883,0.006,25922.0,25921.0,0.30012146]
[1693821235084,0.003,25922.0,25921.0,0.68666824]
[1693821235419,0.006,25922.0,25921.0,0.69066824]
[1693821235620,0.006,25922.0,25921.0,0.69030824]
[1693821235861,0.006,25922.0,25921.0,0.74566119]
[1693821236061,0.003,25922.0,25921.0,0.74416119]
[1693821236362,0.005,25922.0,25921.0,0.75582119]
[1693821236562,0.005,25922.0,25921.0,0.9405263]
[1693821236761,0.005,25922.0,25921.0,0.9430463]
[1693821236926,0.005,25922.0,25921.0,0.9435263]
[1693821237151,0.005,25922.0,25921.0,0.9405263]
[1693821237362,0.005,25922.0,25921.0,0.80138484]
[1693821237573,0.005,25922.0,25921.0,0.80126484]
[1693821237766,0.005,25922.0,25921.0,0.94116034]
[1693821237991,0.005,25922.0,25921.0,0.80432484]
[1693821238116,0.005,25922.0,25921.0,0.80048484]
[1693821238429,0.005,25922.0,25921.0,0.79172484]
[1693821238635,0.005,25922.0,25921.0,0.79106484]
[1693821238848,0.005,25922.0,25921.0,0.79442484]
[1693821239207,0.001912,25922.0,25921.0,0.79346484]
[1693821239337,0.001912,25922.0,25921.0,0.79304484]
[1693821239549,0.001912,25922.0,25921.0,0.79340484]
[1693821239755,0.001912,25922.0,25921.0,0.79286484]
[1693821239983,0.001912,25922.0,25921.0,0.79328484]
[1693821240182,0.001912,25922.0,25921.0,0.79472484]
[1693821240379,0.001912,25922.0,25921.0,0.79394484]
[1693821240712,0.001912,25922.0,25921.0,1.49982484]
[1693821241014,0.001789,25922.0,25921.0,1.49472484]
[1693821241157,0.001789,25922.0,25921.0,1.49436484]
[1693821241359,0.001789,25922.0,25921.0,1.49388484]
[1693821241555,0.001789,25922.0,25921.0,1.49382484]
[1693821241764,0.001789,25922.0,25921.0,1.49172484]
[1693821241982,0.001789,25922.0,25921.0,1.49144484]
[1693821242182,0.001789,25922.0,25921.0,1.63964364]
[1693821242183,0.003789,25922.0,25921.0,1.63964364]
[1693821242547,0.003789,25922.0,25921.0,1.11943074]
[1693821242748,0.002,25922.0,25921.0,1.11473074]
[1693821242953,0.002,25922.0,25921.0,0.92960364]
[1693821243145,0.002,25922.0,25921.0,0.92948364]
[1693821243349,0.002,25922.0,25921.0,0.94796364]
[1693821243350,0.004,25922.0,25921.0,0.94796364]
[1693821243578,0.004,25922.0,25921.0,0.86336364]
[1693821243793,0.002,25922.0,25921.0,0.84536364]
[1693821243991,0.002,25922.0,25921.0,0.86336364]
[1693821244197,0.004,25922.0,25921.0,0.86336364]
[1693821245335,0.004,25922.0,25921.0,0.82487069]
[1693821245512,0.004,25922.0,25921.0,0.65077592]
[1693821245713,0.004,25922.0,25921.0,0.26368914]
[1693821249685,0.004,25922.0,25921.0,0.44846853]
[1693821250284,0.004,25922.0,25921.0,0.44851102]
[1693821253284,0.004,25922.0,25921.0,0.53021425]
[1693821254336,0.004,25922.0,25921.0,0.39160953]
[1693821258661,0.004,25922.0,25921.0,1.67869631]
[1693821258832,0.004,25922.0,25921.0,1.97534419]
[1693821259030,0.004,25922.0,25921.0,1.97564419]
[1693821259207,0.004,25922.0,25921.0,1.97504419]
[1693821259425,0.004,25922.0,25921.0,1.90970419]
[1693821259785,0.004,25922.0,25921.0,1.72489789]
[1693821260127,0.004,25922.0,25921.0,1.90980156]
[1693821260492,0.004,25922.0,25921.0,1.72489789]
[1693821265800,0.004,25922.0,25921.0,1.49389001]
[1693821266446,0.004,25922.0,25921.0,1.72516637]
[1693821266816,0.004,25922.0,25921.0,1.49389001]
[1693821267016,0.004,25922.0,25921.0,1.79716847]
[1693821267217,0.004,25922.0,25921.0,1.79662847]
[1693821267445,0.004,25922.0,25921.0,1.56241001]
[1693821267648,0.004,25922.0,25921.0,1.49389001]
[1693821267802,0.004,25922.0,25921.0,1.72516996]
[1693821268226,0.004,25922.0,25921.0,1.55965001]
[1693821268422,0.004,25922.0,25921.0,1.79422618]
[1693821268632,0.004,25922.0,25921.0,1.79464618]
[1693821268832,0.004,25922.0,25921.0,1.56271001]
[1693821269032,0.004,25922.0,25921.0,1.55989001]
[1693821269258,0.004,25922.0,25921.0,1.7251711]
[1693821269679,0.004,25922.0,25921.0,1.55941001]
[1693821269995,0.004,25922.0,25921.0,1.79039369]
[1693821270148,0.004,25922.0,25921.0,1.79027369]
[1693821270342,0.004,25922.0,25921.0,1.55881001]
[1693821270552,0.004,25922.0,25921.0,1.49389001]
[1693821270766,0.004,25922.0,25921.0,1.72517751]
[1693821270941,0.004,25922.0,25921.0,1.49389001]
[1693821271591,0.004,25922.0,25921.0,1.55929001]
[1693821271794,0.004,25922.0,25921.0,1.49389001]
[1693821276912,0.004,25922.0,25921.0,2.25935001]
[1693821277113,0.004,25922.0,25921.0,2.25953001]
[1693821277539,0.004,25922.0,25921.0,2.25869001]
[1693821277740,0.004,25922.0,25921.0,2.25875001]
[1693821277947,0.004,25922.0,25921.0,2.25887001]
[1693821278131,0.004,25922.0,25921.0,2.25899001]
[1693821278277,0.004,25922.0,25921.0,2.25911001]
[1693821278478,0.004,25922.0,25921.0,2.25929001]
[1693821278663,0.004,25922.0,25921.0,2.25947001]
[1693821278869,0.004,25922.0,25921.0,2.25983001]
[1693821279295,0.004,25922.0,25921.0,2.26139001]
[1693821279494,0.004,25922.0,25921.0,2.19389001]
[1693821279903,0.004,25922.0,25921.0,2.25923001]
[1693821280267,0.004,25922.0,25921.0,2.25947001]
[1693821280454,0.004,25922.0,25921.0,2.26001001]
[1693821280683,0.004,25922.0,25921.0,2.26007001]
[1693821280899,0.004,25922.0,25921.0,2.26463001]
[1693821281067,0.004,25922.0,25921.0,2.26655001]
[1693821281246,0.004,25922.0,25921.0,2.27237001]
[1693821281448,0.004,25922.0,25921.0,2.27255001]
[1693821281664,0.004,25922.0,25921.0,2.27243001]
[1693821281860,0.004,25922.0,25921.0,2.27249001]
[1693821282071,0.004,25922.0,25921.0,2.27009001]
[1693821282342,0.004,25922.0,25921.0,2.27105001]
[1693821282586,0.004,25922.0,25921.0,2.27117001]
[1693821282759,0.004,25922.0,25921.0,2.27045001]
[1693821282960,0.004,25922.0,25921.0,2.27051001]
[1693821283193,0.004,25922.0,25921.0,2.27333001]
[1693821283393,0.004,25922.0,25921.0,2.27057001]
[1693821283507,0.004,25922.0,25921.0,2.26979001]
[1693821283707,0.004,25922.0,25921.0,2.26985001]
[1693821284044,0.004,25922.0,25921.0,2.26991001]
[1693821284276,0.004,25922.0,25921.0,2.27033001]
[1693821284494,0.004,25922.0,25921.0,2.27057001]
[1693821284671,0.004,25922.0,25921.0,2.27069001]
[1693821284844,0.004,25922.0,25921.0,2.27075001]
[1693821285059,0.004,25922.0,25921.0,1.49389001]
[1693821294668,0.004,25922.0,25921.0,1.5057422]
[1693821295663,0.004,25922.0,25921.0,1.49389001]
[1693821299733,0.004,25922.0,25921.0,1.49390764]
[1693821303630,0.004,25922.0,25921.0,0.59390764]
[1693821303837,0.004,25922.0,25921.0,0.20682086]
[1693821306645,0.22231766,25922.0,25921.0,0.20682086]
[1693821307491,0.22031766,25922.0,25921.0,0.18882086]
[1693821308145,0.4514,25925.0,25921.0,0.16482086]
[1693821308353,0.4514,25925.0,25924.0,0.09255993]
[1693821310072,0.4544,25925.0,25924.0,0.09655993]
[1693821313911,0.4344,25925.0,25924.0,0.09655993]
[1693821314048,0.4544,25925.0,25924.0,0.09655993]
[1693821323080,0.4144,25925.0,25924.0,0.09655993]
[1693821323335,0.4544,25925.0,25924.0,0.09655993]
[1693821328898,0.4144,25925.0,25924.0,0.09655993]
[1693821329098,0.4544,25925.0,25924.0,0.09655993]
[1693821338148,0.454338,25925.0,25924.0,0.09655993]
[1693821340157,0.043,25925.0,25924.0,0.09655993]
[1693821340326,0.043,25925.0,25924.0,0.17965993]
[1693821340555,0.043,25925.0,25924.0,0.31849983]
[1693821341279,0.043,25925.0,25924.0,0.2259399]
[1693821341507,0.043,25925.0,25924.0,0.318499]